[Event "Chess Ladies Graz 2024"]
[Site "Graz"]
[Date "2024.02.26"]
[Round "2.2"]
[White "Trippold, Denise"]
[Black "Schloffer, Jasmin-Denise"]
[Result "0-1"]
[ECO "A17"]
[WhiteElo "2147"]
[BlackElo "2178"]
[Annotator "RC"]
[PlyCount "94"]
[EventDate "2024.02.25"]
[EventType "tourn"]
[EventCountry "AUT"]
[SourceTitle "playchess.com"]
[Source "ChessBase"]
[SourceQuality "1"]
[TimeControl "40/5400+30:1800+30"]

1. c4 {[%emt 0:00:12]} Nf6 {[%emt 0:00:06]} 2. Nf3 {[%emt 0:00:21]} e6 {[%emt 0:00:06]} 3. Nc3 {[%emt 0:00:51]} Bb4 {[%emt 0:01:14]} 4. Qc2 {[%emt 0:00:32]} O-O {[%emt 0:02:11]} 5. a3 {[%emt 0:00:28]} Bxc3 {[%emt 0:00:46]} 6. Qxc3 {[%emt 0:00:07]} Ne4 {[%emt 0:01:50]} 7. Qc2 {[%emt 0:00:34]} f5 {[%emt 0:01:46]} 8. d3 {[%emt 0:06:15]} Nf6 {[%emt 0:00:24]} 9. g3 {[%emt 0:07:46]} b6 {[%emt 0:06:08]} 10. Bg2 {[%emt 0:00:16]} Bb7 {[%emt 0:00:06]} 11. O-O {[%emt 0:01:27]} d6 {[%emt 0:06:20]} 12. b4 {[%emt 0:02:28]} Qe8 {[%emt 0:13:13]} 13. Bb2 {[%emt 0:03:50]} Nbd7 {[%emt 0:01:27]} 14. Rac1 {[%emt 0:20:12]} c5 {[%emt 0:10:49]} 15. Nd2 {[%emt 0:06:16]} Bxg2 {[%emt 0:04:36]} 16. Kxg2 {[%emt 0:00:09]} f4 {[%emt 0:10:58]} 17. gxf4 {[%emt 0:20:19]} Ng4 {[%emt 0:01:45]} 18. e3 {[%emt 0:10:43]} Qg6 {[%emt 0:04:22]} 19. Kh1 {[%emt 0:04:04]} Nxh2 {[%emt 0:02:35]} 20. Rg1 {[%emt 0:00:03]} Ng4 {[%emt 0:00:08]} 21. Nf3 {[%emt 0:04:35]} Qh5+ {[%emt 0:10:03]} 22. Kg2 {[%emt 0:00:13]} e5 {[%emt 0:00:18]} 23. Rh1 {[%emt 0:06:16]} Qg6 {[%emt 0:00:29]} 24. Kf1 {[%emt 0:00:01]} exf4 {[%emt 0:03:00]} 25. e4 {[%emt 0:00:46]} Nde5 {[%emt 0:02:57]} 26. Qe2 {[%emt 0:02:00]} Rae8 {[%emt 0:02:45]} 27. Ke1 {[%emt 0:02:26]} Nxf3+ {[%emt 0:07:41]} 28. Qxf3 {[%emt 0:00:01]} Ne5 {[%emt 0:00:10]} 29. Qh3 {[%emt 0:00:43]} f3 {[%emt 0:02:24]} 30. Bxe5 {[%emt 0:00:12]} Rxe5 {[%emt 0:01:05]} 31. Kd2 {[%emt 0:00:38]} Rg5 {[%emt 0:00:31]} 32. Rh2 {[%emt 0:01:09]} h6 {[%emt 0:01:12]} 33. Rch1 {[%emt 0:00:22]} Rg2 {[%emt 0:01:58]} 34. Qd7 {[%emt 0:00:33]} Rf7 {[%emt 0:01:05]} 35. Qc8+ {[%emt 0:00:34]} Kh7 {[%emt 0:00:04]} 36. Qh3 {[%emt 0:00:34]} Qg5+ {[%emt 0:00:31]} 37. Kc2 {[%emt 0:00:09]} Rf6 {[%emt 0:00:50]} 38. Re1 {[%emt 0:00:45]} Rxh2 {[%emt 0:00:32]} 39. Qxh2 {[%emt 0:00:01]} Qg2 {[%emt 0:00:06]} 40. Rh1 {[%emt 0:01:03]} Rg6 {[%emt 0:01:07]} 41. Qh4 {[%emt 0:17:04]} Rg4 {[%emt 0:00:49]} 42. Qh5 {[%emt 0:00:04]} Qxf2+ {[%emt 0:00:13]} 43. Kb3 {[%emt 0:00:02]} Qg2 {[%emt 0:04:01]} 44. Qf5+ {[%emt 0:00:52]} Rg6 {[%emt 0:00:10]} 45. Rh3 {[%emt 0:01:32]} f2 {[%emt 0:00:24]} 46. Rf3 {[%emt 0:00:33]} Qxf3 {[%emt 0:00:09]} 47. Qxf3 {[%emt 0:00:02]} Rf6 {[%emt 0:00:06]} 0-1

[Event "Chess Ladies Graz 2024"]
[Site "Graz"]
[Date "2024.02.26"]
[Round "2.3"]
[White "Polterauer, Chiara"]
[Black "Froewis, Annika"]
[Result "1/2-1/2"]
[ECO "C78"]
[WhiteElo "2189"]
[BlackElo "2133"]
[Annotator "RC"]
[PlyCount "108"]
[EventDate "2024.02.25"]
[EventType "tourn"]
[EventCountry "AUT"]
[SourceTitle "playchess.com"]
[Source "ChessBase"]
[SourceQuality "1"]
[TimeControl "40/5400+30:1800+30"]

1. e4 {[%emt 0:00:03]} e5 {[%emt 0:00:04]} 2. Nf3 {[%emt 0:00:04]} Nc6 {[%emt 0:00:05]} 3. Bb5 {[%emt 0:00:11]} a6 {[%emt 0:00:06]} 4. Ba4 {[%emt 0:00:05]} Nf6 {[%emt 0:00:20]} 5. O-O {[%emt 0:00:15]} b5 {[%emt 0:02:25]} 6. Bb3 {[%emt 0:00:05]} Bc5 {[%emt 0:01:11]} 7. a4 {[%emt 0:00:41]} Rb8 {[%emt 0:00:12]} 8. c3 {[%emt 0:00:30]} d6 {[%emt 0:00:47]} 9. d4 {[%emt 0:00:15]} Bb6 {[%emt 0:00:15]} 10. Na3 {[%emt 0:00:31]} O-O {[%emt 0:03:34]} 11. axb5 {[%emt 0:00:16]} axb5 {[%emt 0:00:05]} 12. Nxb5 {[%emt 0:00:05]} Bg4 {[%emt 0:00:43]} 13. Bc2 {[%emt 0:00:37]} Bxf3 {[%emt 0:02:51]} 14. gxf3 {[%emt 0:00:29]} Nh5 {[%emt 0:02:07]} 15. f4 {[%emt 0:00:37]} Qh4 {[%emt 0:07:43]} 16. Qf3 {[%emt 0:00:25]} Nxf4 {[%emt 0:08:54]} 17. Bxf4 {[%emt 0:00:18]} Qxf4 {[%emt 0:00:42]} 18. Qxf4 {[%emt 0:16:18]} exf4 {[%emt 0:00:03]} 19. h4 {[%emt 0:00:40]} h6 {[%emt 0:12:30]} 20. Kg2 {[%emt 0:02:57]} Ne7 {[%emt 0:14:04]} 21. Kf3 {[%emt 0:04:04]} f5 {[%emt 0:04:49]} 22. Rae1 {[%emt 0:07:28]} Ba5 {[%emt 0:04:37]} 23. Bd3 {[%emt 0:07:28]} Kh8 {[%emt 0:07:26]} 24. b4 {[%emt 0:05:26]} Bb6 {[%emt 0:00:33]} 25. Rg1 {[%emt 0:03:48]} Rf6 {[%emt 0:08:29]} 26. h5 {[%emt 0:04:15]} c6 {[%emt 0:06:23]} 27. e5 {[%emt 0:10:17]} dxe5 {[%emt 0:00:31]} 28. Rxe5 {[%emt 0:00:16]} Nd5 {[%emt 0:01:37]} 29. Bxf5 {[%emt 0:10:29]} Nxc3 {[%emt 0:04:11]} 30. Nxc3 {[%emt 0:14:17]} Bxd4 {[%emt 0:00:11]} 31. Ra5 {[%emt 0:00:30]} Bxc3 {[%emt 0:00:36]} 32. Be4 {[%emt 0:00:23]} Bxb4 {[%emt 0:04:07]} 33. Rb1 {[%emt 0:03:21]} Rff8 {[%emt 0:01:03]} 34. Ra7 {[%emt 0:00:40]} c5 {[%emt 0:01:33]} 35. Rg1 {[%emt 0:01:43]} Bc3 {[%emt 0:00:17]} 36. Rg4 {[%emt 0:00:32]} Be5 {[%emt 0:01:00]} 37. Bd5 {[%emt 0:00:20]} Rf5 {[%emt 0:01:30]} 38. Bf7 {[%emt 0:01:23]} Bd4 {[%emt 0:01:07]} 39. Rxf4 {[%emt 0:03:50]} Rxf4+ {[%emt 0:00:28]} 40. Kxf4 {[%emt 0:00:06]} Bxf2 {[%emt 0:00:44]} 41. Re7 {[%emt 0:06:24]} Bh4 {[%emt 0:04:17]} 42. Re8+ {[%emt 0:07:56]} Rxe8 {[%emt 0:00:25]} 43. Bxe8 {[%emt 0:00:04]} Kg8 {[%emt 0:09:22]} 44. Bb5 {[%emt 0:00:15]} Kf7 {[%emt 0:02:06]} 45. Kf5 {[%emt 0:00:04]} Ke7 {[%emt 0:00:34]} 46. Bc4 {[%emt 0:00:08]} Bf6 {[%emt 0:01:55]} 47. Bg8 {[%emt 0:00:10]} Kd6 {[%emt 0:00:34]} 48. Bc4 {[%emt 0:00:30]} Bd4 {[%emt 0:01:00]} 49. Bg8 {[%emt 0:00:55]} Kc6 {[%emt 0:00:15]} 50. Bc4 {[%emt 0:00:03]} Kb6 {[%emt 0:00:27]} 51. Ke4 {[%emt 0:00:05]} Ka5 {[%emt 0:00:12]} 52. Kd3 {[%emt 0:00:08]} Kb4 {[%emt 0:00:29]} 53. Bf7 {[%emt 0:00:26]} Bf6 {[%emt 0:01:47]} 54. Be6 {[%emt 0:00:07]} Bd4 {[%emt 0:01:49]} 1/2-1/2

[Event "Chess Ladies Graz 2024"]
[Site "Graz"]
[Date "2024.02.26"]
[Round "2.4"]
[White "Bodnaruk, Anastasia"]
[Black "Atalik, Ekaterina"]
[Result "1-0"]
[ECO "B12"]
[WhiteElo "2340"]
[BlackElo "2405"]
[Annotator "TA"]
[PlyCount "59"]
[EventDate "2024.02.25"]
[EventType "tourn"]
[EventCountry "AUT"]
[SourceTitle "playchess.com"]
[Source "ChessBase"]
[SourceQuality "1"]
[TimeControl "40/5400+30:1800+30"]

{[%evp 9,59,0,0,0,0,0,39,31,33,41,52,33,47,41,131,139,136,131,161,155,241,211,191,101,188,185,168,61,280,272,270,107,100,83,461,452,472,463,716,691,927,945,939,918,1059,1045,1014,578,29988,1313,2081,1729]} 1. e4 {[%emt 0:00:03]} c6 {[%emt 0:00:10]} 2. d4 {[%emt 0:00:08]} d5 {[%emt 0:00:07]} 3. e5 {[%emt 0:00:07]} c5 {[%emt 0:00:29]} 4. Nf3 {[%emt 0:00:56]} cxd4 {[%emt 0:02:59]} 5. Qxd4 {[%emt 0:00:10]} Nc6 {[%emt 0:01:07]} 6. Qf4 {[%emt 0:00:17]} e6 {[%emt 0:00:36]} 7. Bd3 {[%emt 0:00:55]} Qc7 {[%emt 0:07:06][%cal Og7g5]} 8. Nc3 {[%emt 0:04:17] White is slightly better.} a6 {[%emt 0:01:37] Wards off Nb5} 9. O-O {[%emt 0:06:26]} Nge7 {[%emt 0:05:27]} 10. Re1 {[%emt 0:04:23]} Ng6 {[%emt 0:08:58]} 11. Qg3 {[%emt 0:06:06]} d4 {[%emt 0:06:24]} ({Black should try} 11... Bc5 $14) 12. Bxg6 $16 {[%emt 0:09:44]} hxg6 {[%emt 0:00:36]} 13. Ne4 {[%emt 0:01:08]} Bd7 {[%emt 0:03:28]} 14. Bg5 {[%emt 0:06:54]} Qb6 {[%emt 0:02:36]} (14... Bb4 $16) 15. c3 {[%emt 0:02:25]} Qxb2 {[%emt 0:03:47]} 16. cxd4 {[%emt 0:16:49]} (16. Rab1 $18 Qxa2 17. Rxb7 (17. cxd4 Rb8 $14)) 16... Nxd4 {[%emt 0:05:23]} (16... Qa3 $16 {is a better defense.}) 17. Nxd4 $18 {[%emt 0:01:13]} Qxd4 {[%emt 0:00:06]} 18. Rad1 {[%emt 0:04:59]} (18. Qf4 $18 {Nd6+ would now be deadly.} Qb6 19. Reb1) 18... Qa4 $2 {[%emt 0:00:50]} ({Better is} 18... Qb6 $1 $14) 19. Rd3 {[%emt 0:05:05]} Bc6 {[%emt 0:13:12] [#] Black is weak on the dark squares} 20. Red1 $1 {[%emt 0:03:53]} Be7 $16 {[%emt 0:07:46] Repels Nf6+} 21. Rd4 $36 {[%emt 0:04:40][%mdl 2048] Black is under strong pressure. White is more active.} Qc2 $2 {[%emt 0:07:17][%mdl 8192]} (21... Qxd1+ $16 22. Rxd1 Bxe4) 22. Bxe7 $18 {[%emt 0:01:40]} Bxe4 {[%emt 0:01:20]} 23. Qg5 {[%emt 0:02:20]} Bd5 {[%emt 0:01:44]} (23... Qc7 $142 24. Rd8+ Rxd8 25. Rxd8+ Qxd8 26. Bxd8 O-O) 24. Bd6 {[%emt 0:00:15]} f6 {[%emt 0:00:59]} 25. exf6 {[%emt 0:00:18]} Rh5 {[%emt 0:00:49]} 26. Qe3 {[%emt 0:06:32]} (26. fxg7 Rxg5 27. g8=Q+ (27. g8=B Rxg2+ 28. Kh1 Rg4+ 29. Rxd5 Qe4+ 30. f3 Qxf3#) 27... Kd7 $11) 26... Kd7 {[%emt 0:01:45]} 27. Rc1 {[%emt 0:02:20]} Qf5 {[%emt 0:03:43]} 28. Qa3 {[%emt 0:03:12]} gxf6 {[%emt 0:07:13]} 29. g4 {[%emt 0:01:21]} (29. Qa5 $142 Rc8 30. Rc7+ Kxd6 31. Qb6+ (31. Rxc8 {gets mated.} Qb1+) 31... Ke5 32. Rxd5+ (32. Rxc8 Rh7 $18) (32. f4+ Qxf4 33. Rxf4 Kxf4 $18) 32... exd5 33. Re7+ (33. Rxb7 $2 Rc1#) 33... Qe6 34. Qxe6+ Kd4 35. Qg4+ (35. Qxc8 Re5 $18) 35... Kc5 36. Qxc8+ Kb5 37. Rxb7+ (37. Qxb7+ Kc5 38. Qc8+ Kb4 39. Rb7+ Ka4 40. Qc6+ Ka5 41. Qc5+ Ka4 42. Qb4#) 37... Ka4 38. Qc6+ Ka5 39. Qc5+ Ka4 40. Qb4#) 29... Rg5 {[%emt 0:01:28]} 30. Bg3 {[%emt 0:01:01] Weighted Error Value: White=0.75/Black=0.82.  Loses game:     	---       	Black=2      Missed win:     	White=1     	---        Mistake:       	White=2     	Black=4      Inaccurate:     	---       	Black=3      OK:         	White=9     	Black=5      Best:        	White=2     	Black=2} 1-0

[Event "Chess Ladies Graz 2024"]
[Site "Graz"]
[Date "2024.02.26"]
[Round "2.5"]
[White "Mayrhuber, Nikola"]
[Black "Brunello, Marina"]
[Result "0-1"]
[ECO "E16"]
[WhiteElo "1980"]
[BlackElo "2345"]
[Annotator "TA"]
[PlyCount "80"]
[EventDate "2024.02.25"]
[EventType "tourn"]
[EventCountry "AUT"]
[SourceTitle "playchess.com"]
[Source "ChessBase"]
[SourceQuality "1"]
[TimeControl "40/5400+30:1800+30"]

{[%evp 17,80,0,12,9,15,14,21,22,15,8,8,11,5,0,0,0,0,0,-8,0,0,0,8,0,0,0,0,0,0,-6,-12,-14,-29,-33,-19,-75,-81,-87,-90,-85,-83,-123,0,-13,-5,-171,-133,-130,-127,-550,-556,-548,-508,-29970,-29971,-1735,-1131,-29987,-29988,-29991,-29992,-29992,-29993,-29993,-29994]} 1. d4 {[%emt 0:00:02]} Nf6 {[%emt 0:00:43]} 2. c4 {[%emt 0:00:06]} e6 {[%emt 0:00:05]} 3. g3 {[%emt 0:00:18]} Bb4+ {[%emt 0:01:25]} 4. Nd2 {[%emt 0:05:41]} d5 {[%emt 0:02:54]} 5. Bg2 {[%emt 0:00:06]} O-O {[%emt 0:00:16]} 6. Ngf3 {[%emt 0:02:12]} b6 {[%emt 0:03:49]} 7. cxd5 {[%emt 0:06:57]} exd5 {[%emt 0:00:14]} 8. O-O {[%emt 0:00:28]} Bb7 {[%emt 0:03:20]} 9. a3 {[%emt 0:01:33]} Be7 {[%emt 0:00:55]} 10. b4 {[%emt 0:01:41]} a5 {[%emt 0:08:28]} 11. b5 {[%emt 0:05:27]} c6 {[%emt 0:01:02]} 12. bxc6 {[%emt 0:03:41] The position is equal.} Nxc6 {[%emt 0:00:05]} 13. Bb2 {[%emt 0:02:56]} b5 {[%emt 0:01:39]} 14. Nb3 {[%emt 0:03:20]} Ne4 {[%emt 0:00:45]} 15. Nfd2 {[%emt 0:01:16]} a4 {[%emt 0:19:47]} 16. Nxe4 {[%emt 0:04:16]} dxe4 {[%emt 0:00:14]} 17. Nc5 {[%emt 0:03:41]} Bxc5 {[%emt 0:00:12]} 18. dxc5 {[%emt 0:00:06]} Na5 {[%emt 0:00:04]} 19. Qc2 {[%emt 0:03:45][%cal Ob2c3]} Re8 {[%emt 0:05:51]} 20. Rad1 {[%emt 0:05:50]} Qc7 {[%emt 0:04:23]} 21. Qc3 {[%emt 0:10:46][%csl Gb2][%cal Rc3g7] [#]} f6 {[%emt 0:00:25][%cal Oe4e3]} 22. Bh3 {[%emt 0:07:08]} Bc8 {[%emt 0:05:49] Prevents Rd7.} 23. Bxc8 {[%emt 0:04:21]} Raxc8 {[%emt 0:00:05]} 24. Rd5 {[%emt 0:01:51]} Nc4 {[%emt 0:04:58]} 25. Rfd1 {[%emt 0:07:24]} Qc6 {[%emt 0:03:36]} 26. Ba1 {[%emt 0:09:59]} (26. Qb4 $11 {remains equal.}) 26... Re5 $17 {[%emt 0:04:41] Black is more active.} 27. Rd8+ {[%emt 0:04:18]} Rxd8 {[%emt 0:28:15]} 28. Rxd8+ {[%emt 0:00:30]} Kf7 {[%emt 0:00:00]} 29. Qd4 {[%emt 0:01:11] Against Rd5} Rxc5 {[%emt 0:00:00]} (29... h6 $17 30. Kg2 Qxc5 (30... Rxc5 31. Rd7+ Kg8 32. Bc3 $11) 31. Qd7+ Re7) 30. Bc3 {[%emt 0:03:43] Hoping for Bb4.} Ne5 {[%emt 0:00:00]} 31. Bb4 {[%emt 0:00:31]} (31. Rd6 $11 Qc8 32. Bd2) 31... Rc1+ {[%emt 0:00:00]} 32. Kg2 {[%emt 0:00:02]} Rc2 {[%emt 0:00:00] White must now prevent ...e3+.} 33. Qa7+ {[%emt 0:01:17][%mdl 8192]} (33. Qe3 $17) 33... Kg6 $19 {[%emt 0:00:00] And now ...e3+ would win.} 34. Rd6 {[%emt 0:00:30]} Qc4 {[%emt 0:00:00]} 35. Qe7 {[%emt 0:00:34] [#]} (35. Rd2 $19 Rxd2 36. Bxd2 Qxe2 37. Qe3 Qxe3 38. Bxe3) 35... Qxe2 $1 {[%emt 0:00:00]} 36. Qe8+ {[%emt 0:00:02]} Nf7 {[%emt 0:00:00]} 37. Rxf6+ {[%emt 0:00:51]} gxf6 {[%emt 0:00:00] Black mates.} 38. Qg8+ {[%emt 0:00:07]} Kf5 {[%emt 0:00:00]} 39. Qxh7+ {[%emt 0:00:22]} Ke6 {[%emt 0:00:00]} 40. Qh3+ {[%emt 0:01:06]} f5 {[%emt 0:00:00] Weighted Error Value: White=0.58/Black=0.32.  Loses game:     	White=2     	---        Mistake:       	White=2     	Black=1      Inaccurate:     	White=1     	---        OK:         	White=7     	Black=8      Best:        	White=2     	Black=5      Strong:       	---       	Black=1} 0-1

[Event "Chess Ladies Graz 2024"]
[Site "Graz"]
[Date "2024.02.27"]
[Round "3.1"]
[White "Brunello, Marina"]
[Black "Daulyte-Cornette, Deimante"]
[Result "0-1"]
[ECO "B32"]
[WhiteElo "2345"]
[BlackElo "2372"]
[Annotator "TA"]
[PlyCount "102"]
[EventDate "2024.02.25"]
[EventType "tourn"]
[EventCountry "AUT"]
[SourceTitle "playchess.com"]
[Source "ChessBase"]
[SourceQuality "1"]
[TimeControl "40/5400+30:1800+30"]

{[%evp 14,102,21,33,46,15,23,8,0,0,18,0,0,0,0,-23,-11,-29,-29,-22,-22,-39,-42,-44,-12,-62,-62,-65,-54,-56,-61,-54,-43,-76,-91,-88,-80,-80,-79,-84,-81,-87,-71,-114,-34,-116,-108,-118,-122,-108,-104,-187,-179,-158,-71,-125,-118,-112,-76,-75,-83,-104,-106,-172,-170,-219,-230,-220,-220,-228,-227,-268,-265,-290,-288,-270,-294,-295,-279,-338,-275,-564,-751,-888,-761,-1786,-1619,-1387,-1036,-2045,-1853]} 1. e4 {[%emt 0:00:07]} c5 {[%emt 0:00:09]} 2. Nf3 {[%emt 0:00:06][%cal Bg1f3,Bf3d4,Bd4b5,Bb5a3,Ba3c4][%mdl 32]} Nc6 {[%emt 0:00:07]} 3. d4 {[%emt 0:00:03]} cxd4 {[%emt 0:00:09]} 4. Nxd4 {[%emt 0:00:05]} e5 {[%emt 0:00:08]} 5. Nb5 {[%emt 0:00:07]} d6 {[%emt 0:00:08]} 6. N1c3 {[%emt 0:00:12]} a6 {[%emt 0:00:12]} 7. Na3 {[%emt 0:00:05]} Be6 {[%emt 0:00:21]} 8. Nc4 {[%emt 0:00:10]} Rb8 {[%emt 0:00:19]} 9. a4 {[%emt 0:00:37]} Nb4 {[%emt 0:00:52]} 10. Nd5 {[%emt 0:02:23] Dodges Nf6} Bxd5 {[%emt 0:01:10] The position is equal.} 11. exd5 {[%emt 0:00:16]} Nf6 {[%emt 0:00:32]} 12. Ne3 {[%emt 0:15:07] c3 is the strong threat.} Qa5 $1 {[%emt 0:01:38][%csl LRc2,LRd5]} 13. Bd2 {[%emt 0:02:36] aiming for Ra3.} Qc5 {[%emt 0:01:15]} 14. c4 {[%emt 0:02:24] Threatens to win with a5.} Ne4 {[%emt 0:02:18]} 15. Be2 {[%emt 0:07:51]} Nxd2 {[%emt 0:05:05]} 16. Qxd2 {[%emt 0:00:04]} g6 {[%emt 0:01:09]} 17. a5 {[%emt 0:01:19] Hoping for Ra4.} b6 $1 {[%emt 0:01:41]} 18. axb6 {[%emt 0:05:22]} Bh6 {[%emt 0:02:46]} 19. O-O {[%emt 0:05:05]} (19. h4 $11) 19... O-O $15 {[%emt 0:01:46]} 20. Ra4 {[%emt 0:00:29]} Qxb6 {[%emt 0:07:51]} 21. Qc3 {[%emt 0:06:29]} Rfc8 {[%emt 0:04:06]} 22. Rd1 {[%emt 0:01:29]} Bg7 {[%emt 0:13:12]} 23. Qa3 {[%emt 0:04:45]} e4 {[%emt 0:05:31]} 24. c5 {[%emt 0:01:00]} Qxc5 {[%emt 0:12:36]} 25. Bxa6 {[%emt 0:03:05]} Nxa6 {[%emt 0:13:20]} 26. Rxa6 {[%emt 0:00:06]} Rxb2 {[%emt 0:01:01]} 27. Qxc5 {[%emt 0:02:00]} dxc5 {[%emt 0:00:05]} (27... Rxc5 28. Rxd6 Bh6 29. Ng4 $15) 28. Nc4 {[%emt 0:05:20]} Rbb8 {[%emt 0:06:50]} ({Black should play} 28... Rb4 $17 29. Rc6 Rd8 (29... Rxc6 $2 30. dxc6 Bd4 31. c7 $18) 30. Rxc5 Bd4) 29. Nd6 {[%emt 0:05:55] [#]} (29. d6 $15) 29... Rd8 $1 $17 {[%emt 0:00:10] And now ...Rb4 would win.} 30. Nxe4 {[%emt 0:00:06][%cal Og2g3] [#]} Rxd5 $3 {[%emt 0:00:23][%mdl 512]} 31. Rc1 {[%emt 0:00:03][%cal Og2g3]} ({Don't go for} 31. Nf6+ $2 Bxf6 32. Rf1 Kg7 $19) 31... Bb2 {[%emt 0:12:33] ...Re5 would now be deadly.} 32. Rb1 {[%emt 0:07:45] [#]} (32. Nf6+ $17 Kg7 (32... Bxf6 33. Rxf6 Kg7 34. Rc6 $15) 33. Nxd5 Bxc1 34. Ra7) 32... Rb4 $1 $19 {[%emt 0:00:16]} 33. g3 {[%emt 0:00:50][%cal Oa6a5]} Kg7 {[%emt 0:01:53]} (33... Re5 $142 34. Nd6 Kf8) 34. Ra2 {[%emt 0:07:39]} ({White should try} 34. Ra5) 34... Be5 $17 {[%emt 0:01:29]} 35. Re1 {[%emt 0:00:04]} Rb2 {[%emt 0:02:04] Black is more active.} 36. Rxb2 {[%emt 0:00:16]} Bxb2 {[%emt 0:00:05][%mdl 4096] Endgame. KRB-KRN} 37. Re2 {[%emt 0:00:06]} Bd4 {[%emt 0:01:03]} 38. Rc2 {[%emt 0:00:04]} (38. Kf1 $17) 38... Re5 $19 {[%emt 0:01:02]} 39. Nc3 {[%emt 0:01:19]} (39. Nd6 $142) 39... Bxc3 {[%emt 0:00:35]} 40. Rxc3 {[%emt 0:00:06] KR-KR} Kf6 {[%emt 0:01:19]} 41. f4 {[%emt 0:35:11]} Rd5 {[%emt 0:31:14]} 42. Kf2 {[%emt 0:00:05]} Ke6 {[%emt 0:00:00]} 43. Ke3 {[%emt 0:00:00]} Kd6 {[%emt 0:00:00]} 44. g4 {[%emt 0:00:00]} h5 {[%emt 0:00:00]} 45. h3 {[%emt 0:00:00]} h4 {[%emt 0:00:00]} 46. Rc1 {[%emt 0:00:00]} Kc6 {[%emt 0:00:00]} 47. Ra1 $2 {[%emt 0:00:00]} (47. g5) 47... c4 {[%emt 0:00:00] Black is clearly winning.} 48. Ra6+ {[%emt 0:00:00]} Kb5 {[%emt 0:00:00]} 49. Ra7 {[%emt 0:00:00]} f5 {[%emt 0:00:00]} 50. Rb7+ {[%emt 0:00:00]} Kc5 {[%emt 0:00:00]} 51. Rg7 {[%emt 0:00:00]} c3 {[%emt 0:00:00] Weighted Error Value: White=0.48/Black=0.08 (flawless) .  Mistake:       	White=7     	Black=2      Inaccurate:     	White=3     	Black=2      OK:         	White=9     	Black=20     Best:        	---       	Black=4      Strong:       	---       	Black=4} ({Weaker is} 51... Rd3+ 52. Ke2 $19) 0-1